[Event "Istanbul Open 2018"]
[Site "Istanbul"]
[Date "2018.09.05"]
[Round "6"]
[White "Bayramov, Araz"]
[Black "Gezici, Omer Ata"]
[Result "1/2-1/2"]
[ECO "D02"]
[WhiteElo "1750"]
[BlackElo "1736"]
[Annotator "NA RC"]
[PlyCount "103"]
[EventDate "2018.09.02"]
[EventType "swiss"]
[EventCountry "TUR"]
[SourceTitle "playchess.com"]
[Source "ChessBase"]
[SourceQuality "1"]
[TimeControl "5400+30"]

1. d4 {[%emt 0:09:30]} d5 {[%emt 0:00:30]} 2. Bf4 {[%emt 0:00:00]} Nf6 {[%emt 0:00:00]} 3. Nf3 {[%emt 0:00:00]} c5 {[%emt 0:00:00]} 4. e3 {[%emt 0:00:30]} Nc6 {[%emt 0:00:30]} 5. c3 {[%emt 0:00:00]} Qb6 {[%emt 0:00:00]} 6. b3 {[%emt 0:00:00]} Bf5 {[%emt 0:03:00]} 7. Bd3 {[%emt 0:01:30]} Bxd3 {[%emt 0:02:30]} 8. Qxd3 {[%emt 0:00:30]} e6 {[%emt 0:00:30]} 9. O-O {[%emt 0:00:30]} Be7 {[%emt 0:00:30]} 10. Nbd2 {[%emt 0:01:30]} O-O {[%emt 0:00:30]} 11. Ne5 {[%emt 0:06:30]} cxd4 {[%emt 0:05:30]} 12. exd4 {[%emt 0:02:30]} Nxe5 {[%emt 0:02:30]} 13. Bxe5 {[%emt 0:05:30]} Rac8 {[%emt 0:04:30]} 14. Rfe1 {[%emt 0:14:30]} Nd7 {[%emt 0:12:30]} 15. Bf4 {[%emt 0:08:30]} Qa5 {[%emt 0:04:30]} 16. c4 {[%emt 0:03:30]} Bf6 {[%emt 0:02:30]} 17. Nf3 {[%emt 0:20:30]} Qa6 {[%emt 0:05:30]} 18. Rec1 {[%emt 0:06:00]} Nb6 {[%emt 0:08:30]} 19. Nd2 {[%emt 0:00:14]} Rfd8 {[%emt 0:01:30]} 20. Be3 {[%emt 0:01:51]} e5 {[%emt 0:03:30]} 21. dxe5 {[%emt 0:02:42]} Bxe5 {[%emt 0:01:30]} 22. Bxb6 {[%emt 0:02:54]} Qxb6 {[%emt 0:10:30]} 23. Rab1 {[%emt 0:00:46]} Bf4 {[%emt 0:12:54]} 24. cxd5 {[%emt 0:01:53]} Rxc1+ {[%emt 0:01:52]} 25. Rxc1 {[%emt 0:00:01]} Qh6 {[%emt 0:00:00]} 26. Rc2 {[%emt 0:07:00]} Qxh2+ {[%emt 0:04:28]} 27. Kf1 {[%emt 0:00:00]} Qh1+ {[%emt 0:02:09]} 28. Ke2 {[%emt 0:00:01]} Qxg2 {[%emt 0:00:38]} 29. Qe4 {[%emt 0:01:12]} Qxe4+ {[%emt 0:04:36]} 30. Nxe4 {[%emt 0:00:32]} f5 {[%emt 0:00:30]} 31. Kf3 {[%emt 0:02:15]} Be5 {[%emt 0:00:45]} 32. Ng3 {[%emt 0:00:55]} f4 {[%emt 0:00:58]} 33. Ne2 {[%emt 0:00:00]} g5 {[%emt 0:03:36]} 34. Ke4 {[%emt 0:00:01]} Bd6 {[%emt 0:00:28]} 35. Kf5 {[%emt 0:00:07]} Be7 {[%emt 0:00:35]} 36. Ke6 {[%emt 0:02:15]} Kf8 {[%emt 0:00:11]} 37. Nd4 {[%emt 0:01:06]} Rd6+ {[%emt 0:01:00]} 38. Ke5 {[%emt 0:00:01]} Ra6 {[%emt 0:01:31]} 39. Rc8+ {[%emt 0:00:08]} Kf7 {[%emt 0:00:33]} 40. Rc7 {[%emt 0:00:01]} Ke8 {[%emt 0:00:48]} 41. Nf5 {[%emt 0:00:04]} Bf6+ {[%emt 0:01:05]} 42. Ke4 {[%emt 0:00:00]} h5 {[%emt 0:00:14]} 43. d6 {[%emt 0:00:14]} Ra5 {[%emt 0:00:34]} 44. Ng7+ {[%emt 0:00:34]} Bxg7 {[%emt 0:00:27]} 45. Rxg7 {[%emt 0:00:30]} b6 {[%emt 0:00:34]} 46. a4 {[%emt 0:00:01]} Kd8 {[%emt 0:00:45]} 47. f3 {[%emt 0:02:11]} Rc5 {[%emt 0:00:34]} 48. Rxa7 {[%emt 0:00:02]} Rc3 {[%emt 0:00:31]} 49. Rg7 {[%emt 0:00:24]} Re3+ {[%emt 0:00:17]} 50. Kd5 {[%emt 0:00:01]} Rxf3 {[%emt 0:00:41]} 51. Rxg5 {[%emt 0:01:08]} h4 {[%emt 0:00:22]} 52. Kd4 {[%emt 0:03:16]} 1/2-1/2

[Event "Istanbul Open 2018"]
[Site "Istanbul"]
[Date "2018.09.05"]
[Round "6"]
[White "Ocakacan, Deniz"]
[Black "Hakkaki Fard, Pedram"]
[Result "1/2-1/2"]
[ECO "C42"]
[WhiteElo "1650"]
[BlackElo "1815"]
[Annotator "NA RC"]
[PlyCount "101"]
[EventDate "2018.09.02"]
[EventType "swiss"]
[EventCountry "TUR"]
[SourceTitle "playchess.com"]
[Source "ChessBase"]
[SourceQuality "1"]
[TimeControl "5400+30"]

1. e4 {[%emt 0:13:30]} e5 {[%emt 0:00:30]} 2. Nf3 {[%emt 0:00:30]} Nf6 {[%emt 0:00:00]} 3. Nxe5 {[%emt 0:00:30]} d6 {[%emt 0:00:00]} 4. Nf3 {[%emt 0:00:00]} Nxe4 {[%emt 0:00:30]} 5. Qe2 {[%emt 0:01:00]} Qe7 {[%emt 0:00:30]} 6. Nc3 {[%emt 0:00:00]} Nxc3 {[%emt 0:02:30]} 7. dxc3 {[%emt 0:00:00]} Bf5 {[%emt 0:03:30] C42: Russische Verteidigung (Petrow)} (7... Qxe2+ 8. Bxe2 Nc6 9. Be3 Be7 10. O-O-O O-O 11. Rhe1 Bf6 12. Nd2 Re8 13. Bf3 Ne5 14. Bf4 Kf8 15. Bd5 c6 16. Bb3 {0-1 (66) Kramnik,V (2800)-Caruana,F (2784) Berlin 2018}) 8. Be3 {[%emt 0:00:30]} a6 $146 {[%emt 0:03:30]} ({Vorgänger:} 8... Nc6 9. O-O-O O-O-O 10. g3 Qe6 11. Kb1 Be7 12. Bg2 Be4 13. Rhe1 Rhe8 14. Qf1 Qg6 15. Nd4 Bxg2 16. Qxg2 {1-0 (40) Mrozowski,P (2017)-Ruhlmann,H (1833) Krakow 2017}) 9. O-O-O {[%emt 0:00:30]} Nc6 {[%emt 0:01:30]} 10. Nd4 {[%emt 0:05:30]} Nxd4 {[%emt 0:03:30]} 11. Bxd4 {[%emt 0:00:30]} Qxe2 {[%emt 0:08:30]} 12. Bxe2 {[%emt 0:00:30]} O-O-O {[%emt 0:00:30]} 13. Rhe1 {[%emt 0:01:30]} h5 {[%emt 0:06:30]} 14. h3 {[%emt 0:04:30]} h4 {[%emt 0:05:30]} 15. Bf3 {[%emt 0:01:30]} d5 {[%emt 0:25:30]} 16. Be3 {[%emt 0:23:30]} Be4 {[%emt 0:01:30]} 17. Bg4+ {[%emt 0:02:30]} f5 {[%emt 0:12:30]} 18. Bg5 {[%emt 0:02:30]} Rd6 {[%emt 0:00:00]} 19. f3 {[%emt 0:02:30]} fxg4 {[%emt 0:01:00]} 20. fxe4 {[%emt 0:00:30]} Rh5 {[%emt 0:05:43]} 21. Rf1 {[%emt 0:14:30]} Rxg5 {[%emt 0:02:20]} 22. Rxf8+ {[%emt 0:00:30]} Kd7 {[%emt 0:00:10]} 23. exd5 {[%emt 0:03:30]} gxh3 {[%emt 0:06:22]} 24. gxh3 {[%emt 0:00:30]} Rg3 {[%emt 0:00:37]} 25. Rf7+ {[%emt 0:09:36]} Kc8 {[%emt 0:00:12]} 26. Rd3 {[%emt 0:04:39]} Rdg6 {[%emt 0:07:42]} 27. Rdf3 {[%emt 0:01:10]} Rg2 {[%emt 0:01:40]} 28. Re3 {[%emt 0:04:46]} ({Lieber} 28. Rf8+ $16 Kd7 29. R3f7+ Kd6 30. Rd8+ Ke5 31. Re7+ Kf5 32. Rf8+ (32. Rxc7 R6g3 $14) 32... Rf6 33. Rxf6+ Kxf6 34. Rxc7) 28... Rg1+ {[%emt 0:00:45]} 29. Kd2 {[%emt 0:00:07]} R6g2+ {[%emt 0:00:19]} 30. Kd3 {[%emt 0:00:11]} Rg3 $1 {[%emt 0:00:21]} 31. Kd4 {[%emt 0:00:30]} Rd1+ {[%emt 0:01:01]} 32. Ke4 {[%emt 0:00:27]} g5 {[%emt 0:00:28]} 33. Rg7 {[%emt 0:00:37]} Rdg1 {[%emt 0:00:44]} 34. c4 {[%emt 0:01:56]} R1g2 {[%emt 0:00:27]} 35. Rxg3 {[%emt 0:00:54]} Rxg3 {[%emt 0:00:06]} 36. Kf5 {[%emt 0:00:10]} (36. Rg8+ $16 Kd7 37. Rg7+ Kd8 38. Rg8+ Kd7 39. Rg7+ Kd8 40. c5) 36... Rxh3 {[%emt 0:00:41]} 37. Rxg5 {[%emt 0:00:08]} Rh2 {[%emt 0:00:18]} 38. Rh5 {[%emt 0:00:18]} Rxc2 {[%emt 0:00:11]} 39. b3 {[%emt 0:00:24]} Rxa2 {[%emt 0:01:08]} 40. Rxh4 {[%emt 0:00:04]} Rb2 {[%emt 0:00:41]} 41. Rh3 {[%emt 0:00:11]} b6 {[%emt 0:00:17]} 42. Ke4 {[%emt 0:01:16]} a5 {[%emt 0:00:36]} 43. Kd4 {[%emt 0:00:09]} Rc2 {[%emt 0:00:24]} 44. Rh7 {[%emt 0:00:46]} Rc1 {[%emt 0:00:43]} 45. Rh8+ {[%emt 0:00:39]} Kb7 {[%emt 0:00:10]} 46. Rd8 {[%emt 0:00:27]} a4 {[%emt 0:00:38]} 47. bxa4 {[%emt 0:01:09]} Ra1 {[%emt 0:00:04]} 48. Kc3 {[%emt 0:00:06]} Rxa4 {[%emt 0:00:13]} 49. Kb3 {[%emt 0:00:06]} Ra1 $11 {[%emt 0:00:26]} 50. Re8 {[%emt 0:00:17]} Rd1 {[%emt 0:00:24]} 51. Re7 {[%emt 0:01:10]} 1/2-1/2

[Event "Istanbul Open 2018"]
[Site "Istanbul"]
[Date "2018.09.05"]
[Round "6"]
[White "Pektas, Gokdeniz"]
[Black "Ersoy, Emre"]
[Result "1-0"]
[ECO "E39"]
[WhiteElo "1602"]
[BlackElo "1557"]
[Annotator "NA RC"]
[PlyCount "101"]
[EventDate "2018.09.02"]
[EventType "swiss"]
[EventCountry "TUR"]
[SourceTitle "playchess.com"]
[Source "ChessBase"]
[SourceQuality "1"]
[TimeControl "5400+30"]

1. d4 {[%emt 0:00:30]} e6 {[%emt 0:00:30]} 2. c4 {[%emt 0:00:00]} Nf6 {[%emt 0:00:00]} 3. Nc3 {[%emt 0:00:00]} Bb4 {[%emt 0:00:00]} 4. Qc2 {[%emt 0:00:00]} c5 {[%emt 0:00:00]} 5. dxc5 {[%emt 0:02:00]} Nc6 {[%emt 0:01:00]} 6. Nf3 {[%emt 0:00:30]} O-O {[%emt 0:02:30]} 7. Bf4 {[%emt 0:00:00]} Bxc5 {[%emt 0:01:30]} 8. a3 {[%emt 0:00:00]} a6 {[%emt 0:09:30]} 9. Rd1 {[%emt 0:06:30]} h6 {[%emt 0:10:30]} 10. b4 {[%emt 0:05:30]} Be7 {[%emt 0:02:30]} 11. e4 {[%emt 0:00:00]} a5 {[%emt 0:04:30]} 12. b5 {[%emt 0:00:00]} Nb8 {[%emt 0:05:30]} 13. Bc1 {[%emt 0:01:30]} Qc7 {[%emt 0:03:30]} 14. e5 {[%emt 0:14:30]} Ne8 {[%emt 0:16:30]} 15. Bd3 {[%emt 0:07:30]} d6 {[%emt 0:07:30]} 16. exd6 {[%emt 0:00:30]} Bxd6 {[%emt 0:06:30]} 17. Ne4 {[%emt 0:00:30]} Be7 {[%emt 0:00:30]} 18. O-O {[%emt 0:00:30]} b6 {[%emt 0:05:30]} 19. Bb2 {[%emt 0:19:30]} Bb7 {[%emt 0:04:51]} 20. Be5 {[%emt 0:00:30]} Qc8 {[%emt 0:01:54]} 21. a4 {[%emt 0:00:30]} Nd7 {[%emt 0:02:41]} 22. Bg3 {[%emt 0:02:30]} f5 {[%emt 0:02:09]} 23. Ned2 {[%emt 0:00:30]} f4 {[%emt 0:01:38]} 24. Nb1 {[%emt 0:16:30]} fxg3 {[%emt 0:02:41]} 25. Bh7+ {[%emt 0:00:30]} Kh8 {[%emt 0:00:15]} 26. Rxd7 {[%emt 0:00:00]} gxh2+ {[%emt 0:05:25]} 27. Kh1 {[%emt 0:00:00]} Qxd7 {[%emt 0:01:39]} 28. Ne5 {[%emt 0:00:30]} Qc7 {[%emt 0:01:59]} 29. Ng6+ {[%emt 0:06:52]} Kxh7 {[%emt 0:00:03]} 30. Nxf8+ {[%emt 0:02:27]} Kg8 {[%emt 0:00:38]} 31. Nxe6 {[%emt 0:00:06]} Qe5 {[%emt 0:00:52]} 32. Qg6 {[%emt 0:00:56]} Qf6 {[%emt 0:00:42]} 33. Qxf6 {[%emt 0:00:26]} Bxf6 {[%emt 0:00:23]} 34. Kxh2 {[%emt 0:00:01]} Nd6 {[%emt 0:00:35]} 35. c5 {[%emt 0:00:31]} bxc5 {[%emt 0:00:32]} 36. Nxc5 {[%emt 0:00:01]} Be4 {[%emt 0:00:26]} 37. Nd2 {[%emt 0:00:39]} Bg6 {[%emt 0:00:15]} 38. Ndb3 {[%emt 0:00:31]} Bc3 {[%emt 0:00:49]} 39. Rd1 {[%emt 0:00:21]} Ne4 {[%emt 0:00:19]} 40. Nxe4 {[%emt 0:00:02]} Bxe4 {[%emt 0:00:06]} 41. Nc5 {[%emt 0:00:31]} Bg6 {[%emt 0:00:36]} 42. b6 {[%emt 0:01:15]} Be5+ {[%emt 0:00:43]} 43. f4 {[%emt 0:01:00]} Bxf4+ {[%emt 0:00:54]} 44. g3 {[%emt 0:00:00]} Be3 {[%emt 0:00:10]} 45. Nd7 {[%emt 0:01:16]} Rd8 {[%emt 0:00:19]} 46. Nf6+ {[%emt 0:00:08]} gxf6 {[%emt 0:00:29]} 47. Rxd8+ {[%emt 0:00:01]} Kf7 {[%emt 0:00:26]} 48. b7 {[%emt 0:00:01]} Ba7 {[%emt 0:00:35]} 49. Ra8 {[%emt 0:00:11]} Be4 {[%emt 0:00:52]} 50. Rxa7 {[%emt 0:00:01]} Ke6 {[%emt 0:00:31]} 51. b8=Q {[%emt 0:00:02]} 1-0

[Event "Istanbul Open 2018"]
[Site "Istanbul"]
[Date "2018.09.05"]
[Round "6"]
[White "Gulceken, Sumeyye"]
[Black "Acar, Cengiz Can"]
[Result "1-0"]
[ECO "D45"]
[WhiteElo "1549"]
[BlackElo "1755"]
[Annotator "NA"]
[PlyCount "67"]
[EventDate "2018.09.02"]
[EventType "swiss"]
[EventCountry "TUR"]
[SourceTitle "playchess.com"]
[Source "ChessBase"]
[SourceQuality "1"]
[TimeControl "5400+30"]

1. d4 {[%emt 0:00:30]} d5 {[%emt 0:01:30]} 2. c4 {[%emt 0:00:00]} c6 {[%emt 0:00:30]} 3. Nc3 {[%emt 0:00:00]} Nf6 {[%emt 0:00:00]} 4. Nf3 {[%emt 0:00:30]} e6 {[%emt 0:09:00]} 5. e3 {[%emt 0:01:30]} Nbd7 {[%emt 0:01:30]} 6. a4 {[%emt 0:02:30]} a5 {[%emt 0:02:30]} 7. Bd3 {[%emt 0:03:30]} Bd6 {[%emt 0:01:30]} 8. e4 {[%emt 0:04:30]} dxe4 {[%emt 0:08:30]} 9. Nxe4 {[%emt 0:00:30]} Nxe4 {[%emt 0:00:00]} 10. Bxe4 {[%emt 0:00:00]} Bb4+ {[%emt 0:06:00]} 11. Bd2 {[%emt 0:01:00]} Bxd2+ {[%emt 0:00:30]} 12. Qxd2 {[%emt 0:00:30]} Nf6 {[%emt 0:00:30]} 13. Bc2 {[%emt 0:00:30]} h6 {[%emt 0:01:30]} 14. O-O {[%emt 0:02:30]} b6 {[%emt 0:02:30]} 15. Rfe1 {[%emt 0:05:30]} Qd6 {[%emt 0:05:30]} 16. h3 {[%emt 0:03:30]} Bb7 {[%emt 0:11:30]} 17. Rad1 {[%emt 0:05:30]} g5 {[%emt 0:04:30]} 18. Ne5 {[%emt 0:13:30]} Rg8 {[%emt 0:07:30]} 19. c5 {[%emt 0:06:30]} Qc7 {[%emt 0:07:30]} 20. Nc4 {[%emt 0:04:30]} bxc5 {[%emt 0:02:30]} 21. dxc5 {[%emt 0:00:30]} Nd5 {[%emt 0:05:56]} 22. Nd6+ {[%emt 0:04:30]} Kf8 {[%emt 0:01:33]} 23. h4 {[%emt 0:08:30]} Ba6 {[%emt 0:00:56]} 24. Re5 {[%emt 0:07:30]} Rb8 {[%emt 0:04:54]} 25. hxg5 {[%emt 0:03:30]} hxg5 {[%emt 0:00:38]} 26. Rxg5 {[%emt 0:00:30]} Qe7 {[%emt 0:00:40]} 27. Rxg8+ {[%emt 0:02:01]} Kxg8 {[%emt 0:00:31]} 28. Qh6 {[%emt 0:00:30]} Qf6 {[%emt 0:01:06]} 29. Bh7+ {[%emt 0:01:09]} Kh8 {[%emt 0:00:02]} 30. Nxf7+ {[%emt 0:00:23]} Qxf7 {[%emt 0:00:18]} 31. Bg6+ {[%emt 0:00:05]} Kg8 {[%emt 0:00:00]} 32. Bxf7+ {[%emt 0:00:11]} Kxf7 {[%emt 0:00:02]} 33. Qh7+ {[%emt 0:00:51]} Kf6 {[%emt 0:00:19]} 34. Qa7 {[%emt 0:00:22]} 1-0

[Event "Istanbul Open 2018"]
[Site "Istanbul"]
[Date "2018.09.05"]
[Round "6"]
[White "Tepeli, Huseyin"]
[Black "Kocer, Ahmet Doruk"]
[Result "0-1"]
[ECO "B73"]
[WhiteElo "1529"]
[BlackElo "1635"]
[Annotator "NA"]
[PlyCount "42"]
[EventDate "2018.09.02"]
[EventType "swiss"]
[EventCountry "TUR"]
[SourceTitle "playchess.com"]
[Source "ChessBase"]
[SourceQuality "1"]
[TimeControl "5400+30"]

1. e4 {[%emt 0:00:30]} c5 {[%emt 0:08:30]} 2. Nf3 {[%emt 0:00:30]} d6 {[%emt 0:00:30]} 3. d4 {[%emt 0:00:30]} cxd4 {[%emt 0:00:00]} 4. Nxd4 {[%emt 0:00:30]} Nf6 {[%emt 0:00:00]} 5. Nc3 {[%emt 0:00:30]} g6 {[%emt 0:00:00]} 6. Be2 {[%emt 0:00:30]} Bg7 {[%emt 0:00:00]} 7. O-O {[%emt 0:00:30]} O-O {[%emt 0:00:30]} 8. Be3 {[%emt 0:00:00]} Nc6 {[%emt 0:00:00]} 9. h3 {[%emt 0:00:00]} Bd7 {[%emt 0:00:00]} 10. Qd2 {[%emt 0:03:30]} Rc8 {[%emt 0:01:30]} 11. f4 {[%emt 0:02:30]} a6 {[%emt 0:05:30]} 12. Rad1 {[%emt 0:06:30]} b5 {[%emt 0:02:30]} 13. Nxc6 {[%emt 0:07:30]} Bxc6 {[%emt 0:00:30]} 14. Bf3 {[%emt 0:00:30]} b4 {[%emt 0:03:30]} 15. Nd5 {[%emt 0:00:30]} Nxd5 {[%emt 0:00:30]} 16. exd5 {[%emt 0:00:30]} Bb5 {[%emt 0:00:30]} 17. Rf2 {[%emt 0:02:30]} Bxb2 {[%emt 0:01:30]} 18. Qxb4 {[%emt 0:00:30]} Bc3 {[%emt 0:00:30]} 19. Qb3 {[%emt 0:01:30]} Qa5 {[%emt 0:01:30]} 20. Bd4 {[%emt 0:04:30]} Bxd4 {[%emt 0:02:30]} 21. Rxd4 {[%emt 0:00:30]} Qe1+ {[%emt 0:00:30]} 0-1

[Event "Istanbul Open 2018"]
[Site "Istanbul"]
[Date "2018.09.06"]
[Round "7"]
[White "Abishli, Oghuz"]
[Black "Akin, Yagiz Cinar"]
[Result "0-1"]
[ECO "A42"]
[WhiteElo "2099"]
[BlackElo "1963"]
[Annotator "NA RC"]
[PlyCount "160"]
[EventDate "2018.09.02"]
[EventType "swiss"]
[EventCountry "TUR"]
[SourceTitle "playchess.com"]
[Source "ChessBase"]
[SourceQuality "1"]
[TimeControl "5400+30"]

1. d4 {[%emt 0:00:30]} g6 {[%emt 0:00:30]} 2. c4 {[%emt 0:00:00]} Bg7 {[%emt 0:00:00]} 3. Nc3 {[%emt 0:00:00]} d6 {[%emt 0:00:00]} 4. e4 {[%emt 0:00:00]} e5 {[%emt 0:00:00]} 5. d5 {[%emt 0:00:00]} Nd7 {[%emt 0:00:00]} 6. Be2 {[%emt 0:00:30]} Ne7 {[%emt 0:00:30]} 7. h4 {[%emt 0:00:30] A42: Moderne Verteidigung (mit c2-c4/ohne Sf6)} h6 {[%emt 0:00:30]} (7... h5 8. Nh3 a5 9. Be3 Bh6 10. Bxh6 Rxh6 11. Qd2 Rh8 12. O-O-O Kf8 13. Ng5 Ng8 14. Rdf1 Kg7 {1-0 (25) Bai,J (2594)-Gao,R (2561) Tianjin 2018}) 8. h5 {[%emt 0:00:30]} g5 {[%emt 0:00:30]} 9. g4 {[%emt 0:01:30]} a5 $146 {[%emt 0:02:30]} ({Vorgänger:} 9... O-O 10. f3 a5 11. Nh3 f6 12. Nf2 Nc5 13. O-O c6 14. Be3 Na6 {1-0 (45) Mont Reynaud,J (2282)-Pizarro,P (2164) ICC INT 2000}) 10. Be3 {[%emt 0:03:30]} b6 {[%emt 0:04:30]} 11. Nf3 {[%emt 0:07:30]} Nf6 {[%emt 0:04:30]} 12. Nd2 {[%emt 0:00:30]} O-O {[%emt 0:04:30]} 13. f3 {[%emt 0:02:30]} Nd7 {[%emt 0:01:30]} 14. a3 {[%emt 0:10:30]} c5 {[%emt 0:07:30]} 15. Nf1 {[%emt 0:15:30]} Nf6 {[%emt 0:04:30]} 16. Ng3 {[%emt 0:03:30]} Ne8 {[%emt 0:00:00]} 17. Bf1 {[%emt 0:02:30]} Nc7 {[%emt 0:01:00]} 18. Rh2 {[%emt 0:02:30]} Bd7 {[%emt 0:03:30]} 19. Rb1 {[%emt 0:06:30]} Na6 {[%emt 0:05:30]} 20. b3 {[%emt 0:02:30]} f6 {[%emt 0:05:30]} 21. Rhb2 {[%emt 0:09:30]} Rb8 {[%emt 0:05:30]} 22. Qd2 {[%emt 0:04:30]} Rb7 {[%emt 0:05:30]} 23. Na2 {[%emt 0:02:30]} Qa8 {[%emt 0:05:30]} 24. Bd3 {[%emt 0:01:30]} Rfb8 {[%emt 0:02:30]} 25. Nc3 {[%emt 0:00:30]} Ra7 {[%emt 0:02:30]} 26. Nb5 {[%emt 0:03:30]} Bxb5 {[%emt 0:01:30]} 27. cxb5 {[%emt 0:00:30]} Nc7 {[%emt 0:00:00]} 28. b4 {[%emt 0:00:00]} axb4 {[%emt 0:01:00]} 29. axb4 {[%emt 0:00:00]} Ne8 {[%emt 0:03:30]} 30. Bc4 {[%emt 0:00:30]} Ra4 {[%emt 0:05:30]} 31. Ra2 {[%emt 0:02:16]} Rxa2 {[%emt 0:01:30]} 32. Qxa2 {[%emt 0:00:05]} Qxa2 {[%emt 0:00:30]} 33. Bxa2 {[%emt 0:00:09]} Kf8 {[%emt 0:01:30]} 34. Rd1 {[%emt 0:09:27]} Ra8 {[%emt 0:03:30]} 35. Rd2 {[%emt 0:00:09]} Ra3 {[%emt 0:01:03]} 36. Kf2 {[%emt 0:00:35]} f5 {[%emt 0:03:59]} 37. gxf5 {[%emt 0:01:04]} Nc8 {[%emt 0:04:16]} 38. Bc4 {[%emt 0:01:33]} Bf6 {[%emt 0:02:00]} 39. Ne2 {[%emt 0:01:07]} Ke7 {[%emt 0:02:14]} 40. Rb2 {[%emt 0:01:00]} cxb4 {[%emt 0:06:28]} 41. Rxb4 {[%emt 0:00:41]} Kd7 {[%emt 0:00:05]} 42. Bc1 {[%emt 0:03:16]} Ra8 {[%emt 0:01:39]} 43. Bd3 {[%emt 0:00:24]} Ra2 {[%emt 0:00:32]} 44. Bc4 {[%emt 0:00:33]} Ra8 {[%emt 0:00:03]} 45. Rb2 {[%emt 0:00:08]} Nc7 {[%emt 0:00:11]} 46. Be3 {[%emt 0:00:37]} Ra4 {[%emt 0:00:34]} 47. Bd3 {[%emt 0:00:19]} Ra3 {[%emt 0:00:18]} 48. Nc1 {[%emt 0:00:09]} Nxd5 $1 {[%emt 0:01:24]} 49. exd5 {[%emt 0:01:06]} e4 {[%emt 0:00:05]} 50. Ra2 {[%emt 0:00:10]} Rxa2+ {[%emt 0:00:05]} 51. Nxa2 {[%emt 0:00:05]} exd3 {[%emt 0:00:06]} 52. Nb4 {[%emt 0:00:07]} Na7 {[%emt 0:01:45]} 53. f4 {[%emt 0:01:47]} g4 {[%emt 0:00:19]} 54. Nxd3 {[%emt 0:02:41]} Nxb5 {[%emt 0:00:24]} 55. Bxb6 {[%emt 0:00:16]} Nc3 {[%emt 0:00:05]} 56. Nb4 {[%emt 0:01:11]} Ne4+ {[%emt 0:00:36]} 57. Kg2 {[%emt 0:01:11]} Bc3 {[%emt 0:00:51]} 58. Nc2 {[%emt 0:01:02]} Nf6 {[%emt 0:01:00]} 59. Kg3 {[%emt 0:01:48]} Nxd5 {[%emt 0:00:56]} 60. Bf2 {[%emt 0:00:15]} Nf6 {[%emt 0:00:07]} 61. Ne3 $2 {[%emt 0:00:28]} (61. Kh4 $11 {and White has nothing to worry.}) 61... Ne4+ {[%emt 0:00:32]} 62. Kxg4 {[%emt 0:00:36]} Nxf2+ {[%emt 0:00:05]} 63. Kf3 {[%emt 0:00:00]} Nd3 {[%emt 0:01:10]} 64. Ng4 {[%emt 0:00:08]} Bg7 {[%emt 0:00:46]} 65. Ke4 {[%emt 0:00:48]} Nc5+ {[%emt 0:00:28]} 66. Kd5 {[%emt 0:00:04]} Nd3 {[%emt 0:00:09]} 67. Ke4 {[%emt 0:00:03]} Nc5+ {[%emt 0:00:03]} 68. Kd5 {[%emt 0:00:03]} Na4 {[%emt 0:00:42]} 69. f6 {[%emt 0:01:41]} Bf8 {[%emt 0:00:06]} 70. f5 {[%emt 0:00:34]} Nc3+ {[%emt 0:00:20]} 71. Kc4 {[%emt 0:00:46]} Ne4 {[%emt 0:00:12]} 72. Kd5 {[%emt 0:00:50]} Ng3 {[%emt 0:00:21]} 73. f7 {[%emt 0:00:09]} Nxh5 {[%emt 0:01:35]} 74. f6 {[%emt 0:00:19]} Ng3 {[%emt 0:00:10]} 75. Nh2 {[%emt 0:00:20]} h5 {[%emt 0:00:08]} 76. Nf3 {[%emt 0:00:06]} Nf5 {[%emt 0:00:46]} 77. Ng5 {[%emt 0:00:16]} Nh4 {[%emt 0:01:26]} 78. Ke4 {[%emt 0:00:27]} Bh6 {[%emt 0:00:50]} 79. Nh7 {[%emt 0:01:41]} Ng6 {[%emt 0:00:16]} 80. Kf5 {[%emt 0:00:52] [#]} Nf8 {[%emt 0:00:06]} 0-1